Cogmind - Beta 16.1 @@@ ROGUE MODE // 2026.04.10 @ 19:23:18 Player: FALKE Result: Destroyed by Autobeam Turret with Autobeam Performance ------------- Evolutions (0) 0 Regions Visited (3) 600 Robots Destroyed (31) 155 Value Destroyed (623) 623 Prototype IDs (3) 60 Alien Tech Used (0) 0 Bonus (0) 0 TOTAL SCORE: 1438 Bonus ------- None Cogmind --------- Core Integrity 0/250 Matter 69/300 Energy 125/125 System Corruption 2% Temperature Cool (6) Movement Rolling (105) Location -10/Subcaves Parts ------- > --- POWER (1) -------- Light Ion Engine > --- PROPULSION (2) --- Compact Wheel Subdweller Monowheel > --- UTILITY (2) ------ Sensor Array Signal Interpreter > --- WEAPON (2) ------- Battle Rifle Battle Cannon > --- INVENTORY (5) ---- Light Ion Engine Compact Wheel Medium Storage Unit Improved Terrain Scanner Hacking Suite Peak State ------------ > --- POWER ------------ Light Nuclear Core > --- PROPULSION ------- Wheel Wheel > --- UTILITY ---------- Medium Storage Unit Signal Interpreter > --- WEAPON ----------- Small Laser Particle Gun > --- INVENTORY -------- Ion Engine Light Ion Engine Compact Wheel Compact Wheel Small Battery Medium Matter Pod Improved Terrain Scanner Power Shielding Hacking Suite Mining Laser [Rating: 11] Favorites ----------- Power Light Ion Engine Engine Light Ion Engine Power Core Light Nuclear Core Propulsion Compact Wheel Wheel Compact Wheel Utility Signal Interpreter Device Sensor Array Storage Medium Storage Unit Processor Signal Interpreter Protection Power Shielding Weapon Particle Gun Energy Gun Particle Gun Ballistic Gun Light Assault Rifle Ballistic Cannon Battle Cannon Special Weapon Mining Laser Build | -11 -10 -10 -10 ------- Run | Yrd Mat Min Sub Slots Evolved . | . . . . Power . | . . . . Propulsion . | . . . . Utility . | . . . . Weapon . | . . . . Parts Attached 29 | 8 13 5 3 Power 5 | 1 3 1 . Engine 4 | 1 2 1 . Core 1 | . 1 . . Reactor . | . . . . Propulsion 8 | 3 1 3 1 Treads . | . . . . Leg . | . . . . Wheel 8 | 3 1 3 1 Hover . | . . . . Flight . | . . . . Utility 6 | 2 3 1 . Device 2 | 1 . 1 . Storage 2 | 1 1 . . Processor 1 | . 1 . . Hackware . | . . . . Protection 1 | . 1 . . Artifact . | . . . . Weapon 10 | 2 6 . 2 Energy Gun 5 | 1 4 . . Energy Cannon . | . . . . Ballistic Gun 3 | 1 1 . 1 Ballistic Cannon 1 | . . . 1 Launcher . | . . . . Special Weapon 1 | . 1 . . Impact Weapon . | . . . . Slashing Weapon . | . . . . Piercing Weapon . | . . . . Special Melee Weapon . | . . . . Unidentified Prototypes . | . . . . Parts Lost 6 | . 2 4 . Power 1 | . . 1 . Propulsion 2 | . . 2 . Utility . | . . . . Weapon 3 | . 2 1 . Highest Loss Streak 4 | . 2 4 . To Critical Strikes . | . . . . Average Backups 7 | 7 8 5 5 Power 1 | . 1 1 1 Propulsion 1 | 3 2 . 1 Utility 3 | . 3 3 3 Weapon . | 1 1 . . Tool/Special . | . . . . Unused Backups 12 | 2 6 2 2 Power 2 | . 1 . 1 Propulsion 3 | . 3 . . Utility 7 | 2 2 2 1 Weapon . | . . . . Tool/Special . | . . . . Average Slot Usage (%) 99 | . 99 99 100 Engine 12 | . 11 13 14 Core 1 | . 2 . . Wheel 27 | . 28 27 28 Device 10 | . 7 13 14 Storage 7 | . 14 . . Processor 9 | . 4 14 14 Energy Gun 12 | . 14 13 4 Ballistic Gun 9 | . 6 14 12 Ballistic Cannon 1 | . . . 11 Special Weapon 3 | . 7 . . Peak Build Rating 11 | 10 11 10 10 Average Rating 8 | 8 9 8 9 On Entrance 6 | . 9 10 8 Avg Prop Armor Cover (%) . | . . . . Naked Turns . | . . . . Heaviest Build 20 | 12 20 19 10 Greatest Support 36 | 26 26 32 36 Greatest Overweight (x) 4 | 2 . 4 . Average Overweight (x) . | . . . . Largest Inventory Capacity 10 | 8 10 10 5 Average Capacity 7 | 7 9 5 5 Most Carried 10 | 8 10 10 5 Average Carried 7 | 7 8 5 5 Final Capacity 10 | 8 10 5 5 Final Carried 10 | 8 10 5 5 Class Distribution -------------------- 89% | Mutant 10% | Scavenger-Mutant Dominant Class ---------------- Mutant | -10/Materials Mutant | -10/Mines Mutant | -10/Subcaves Resources | -11 -10 -10 -10 ----------- Run | Yrd Mat Min Sub Matter Collected 966 | 410 314 114 128 Remotely . | . . . . Salvage Created 1010 | 174 584 199 53 Parts 58 | 18 36 4 . Haulers Intercepted . | . . . . Recyclers Shooed 3 | . 3 . . Parts Field Recycled . | . . . . Retrieved Matter . | . . . . Parts Self-Destructed 3 | . . . 3 Prevented . | . . . . Parts Restored . | . . . . Kills | -11 -10 -10 -10 ------- Run | Yrd Mat Min Sub Combat Hostiles Destroyed 13 | . 8 3 2 Guns 11 | . 8 2 1 Cannons 2 | . . 1 1 Classes Destroyed 10 | 3 4 1 2 Worker 2 | 1 1 . . Builder 2 | . 2 . . Tunneler 5 | 5 . . . Recycler 4 | 1 1 2 . Operator 1 | . 1 . . Turret 1 | . . . 1 Watcher 3 | . 3 . . Swarmer 3 | . . 2 1 Grunt 9 | . 8 1 . Subdweller 1 | . . . 1 Best Kill Streak 5 | 2 5 2 1 Combat Bots Only 2 | . 2 2 1 Max Kills in Single Turn 1 | 1 1 1 1 Gunslinging . | . . . . Exploded . | . . . . Melee . | . . . . Uniques/NPCs Destroyed . | . . . . Combat | -11 -10 -10 -10 -------- Run | Yrd Mat Min Sub Hostile Shots Fired 150 | . 49 42 59 Missed 48 | . 13 6 29 Hits 102 | . 36 36 30 Projectile 102 | . 36 36 30 Critical Strikes 1 | . 1 . . Damage Taken 1028 | . 478 291 259 Core 252 | . 123 65 64 Absorbed by Shields . | . . . . Redirected to Shielding 8 | . 8 . . Regen/Repaired (Parts) 12 | . 12 . . Core Remaining (%) 100 | 100 . . . Volleys Fired 150 | 14 78 19 39 Largest 2 | 2 2 2 2 Hottest 140 | 60 140 120 58 Shots Fired 265 | 28 122 36 79 Gun 190 | 28 92 31 39 Cannon 40 | . . . 40 Launcher . | . . . . Special 35 | . 30 5 . Kinetic 136 | 14 24 19 79 Thermal 106 | 14 75 17 . Explosive . | . . . . Electromagnetic 23 | . 23 . . Robot Hit Streak 12 | 6 12 6 8 Robot Miss Streak 4 | 3 4 4 3 Penetration Max . | . . . . Secondary Targets . | . . . . Shots Hit Robots 112 | 17 64 17 14 Core Hits 51 | 8 29 8 6 Critical Kills . | . . . . Critical Parts Destroyed . | . . . . Critical Strikes 2 | . 1 1 . Burn 2 | . 1 1 . Melee Attacks . | . . . . Impact . | . . . . Slashing . | . . . . Piercing . | . . . . Sneak Attacks . | . . . . Combat Hostiles . | . . . . Follow-up Attacks . | . . . . Damage Inflicted 1561 | 200 892 238 231 Guns 1270 | 200 820 166 84 Cannons 147 | . . . 147 Explosions . | . . . . Melee . | . . . . Ramming . | . . . . Kinetic 605 | 104 195 75 231 Thermal 767 | 96 508 163 . Explosive . | . . . . Electromagnetic 189 | . 189 . . Impact . | . . . . Slashing . | . . . . Piercing . | . . . . Highest Corruption 2 | . 2 2 2 Average Corruption 1 | . 1 2 2 Corruption Purged . | . . . . Corruption Blocked . | . . . . Effects 35 | . 9 17 9 Message Errors 10 | . 5 3 2 Matter Fused 7 | . . 6 1 Heat Flow Errors 4 | . . 2 2 Energy Discharges 2 | . 2 . . Parts Fused 1 | . . 1 . Data Loss (minor) 7 | . 1 3 3 Data Loss (major) 2 | . . 2 . Misfires 1 | . . . 1 Alerts 1 | . 1 . . Overload Shots . | . . . . Overflow Damage . | . . . . Projectiles . | . . . . Explosions . | . . . . Melee . | . . . . Knockbacks 2 | . . . 2 Impact . | . . . . Kinetic 2 | . . . 2 Secondary . | . . . . Self-Inflicted Damage . | . . . . Shots . | . . . . Rammed . | . . . . Targets Rammed . | . . . . Kicked . | . . . . Crushed . | . . . . Highest Temperature 264 | 20 264 165 196 Average Temperature 60 | 20 60 57 75 Received Heat Transfer 429 | . 285 18 126 Effects 1 | . 1 . . Interference 1 | . 1 . . Siege Activations . | . . . . Martial Activations . | . . . . Shielding Activations . | . . . . Robots Disrupted . | . . . . Combat Hostiles . | . . . . Robots Corrupted . | . . . . Combat Hostiles . | . . . . Parts Fried . | . . . . Impact Corruptions . | . . . . Robots Melted . | . . . . Combat Hostiles . | . . . . Parts Melted 1 | . 1 . . Heat Transferred 1877 | 225 1206 446 . Parts Sabotaged . | . . . . Parts Stolen . | . . . . Parts Stripped . | . . . . Power Chain Reactions . | . . . . Alert | -11 -10 -10 -10 ------- Run | Yrd Mat Min Sub Maximum Alert Level . | . . . . Low Security (%) 100 | 100 100 100 . Level 1 . | . . . . Level 2 . | . . . . Level 3 . | . . . . Level 4 . | . . . . Level 5 . | . . . . High Security . | . . . . Max Security . | . . . . Peak Influence 95 | 10 95 55 . Initial 19 | . . 19 . Average 17 | . 31 4 . Influence Increases 678 | 35 363 150 130 Destroy 0b10 Robot/C 260 | . 160 60 40 Destroy 0b10 Robot/NC 85 | 35 40 10 . Destroy Leader 66 | . 56 10 . Successful Hack 36 | . 27 9 . Disable Machine 45 | . 30 15 . Destroy Structure 21 | . 20 1 . Lose Combat Pursuer 165 | . 30 45 90 Influence Decreases 643 | 35 312 201 95 Entered New Map 32 | . . 32 . Time Decay 563 | 35 294 139 95 Lost Part 48 | . 18 30 . Squads Dispatched 1 | . 1 . . Investigation . | . . . . Extermination . | . . . . Reinforcement 1 | . 1 . . Assault . | . . . . Garrison . | . . . . Intercept . | . . . . Searches Triggered . | . . . . Construction Impeded . | . . . . Haulers Reinforced . | . . . . Active Scanning Responses . | . . . . Cargo Convoy Interrupts . | . . . . Stealth | -11 -10 -10 -10 --------- Run | Yrd Mat Min Sub Distress Signals 1 | . 1 . . Communications Jammed . | . . . . Distress Signals . | . . . . Times Spotted 32 | . 16 7 9 Peak Tracking Total 3 | . 2 3 3 Tactical Retreats 9 | . 2 2 5 Traps | -11 -10 -10 -10 ------- Run | Yrd Mat Min Sub Traps Triggered 3 | . 3 . . Indirectly . | . . . . Trap Hack Attempts . | . . . . Triggered . | . . . . Disarmed . | . . . . Reprogrammed . | . . . . Reused . | . . . . Traps Extracted . | . . . . Installed . | . . . . Triggered . | . . . . Machines | -11 -10 -10 -10 ---------- Run | Yrd Mat Min Sub Machines Disabled 4 | . 2 1 1 Max in Single Turn 1 | . 1 1 1 Machines Repaired . | . . . . Machines Dismantled . | . . . . Machines Sabotaged . | . . . . Overloaded Fab Kills . | . . . . Hacking | -11 -10 -10 -10 --------- Run | Yrd Mat Min Sub Machines Accessed 10 | . 9 1 . Terminals 7 | . 6 1 . Fabricators . | . . . . Repair Stations 1 | . 1 . . Recycling Units 2 | . 2 . . Scanalyzers . | . . . . Garrison Access . | . . . . Total Hacks 29 | . 24 5 . Successful 18 | . 16 2 . Failed 11 | . 8 3 . Catastrophic 2 | . 1 1 . Database Lockouts . | . . . . Manual . | . . . . Terminals 24 | . 19 5 . Fabricators . | . . . . Repair Stations 3 | . 3 . . Recycling Units 2 | . 2 . . Scanalyzers . | . . . . Garrison Access . | . . . . Terminal Hacks 14 | . 12 2 . Record 2 | . . 2 . Prototype ID Bank 2 | . 2 . . Emergency Access Points 1 | . 1 . . Alert Level 2 | . 2 . . Dispatch Records 1 | . 1 . . Maintenance Status 1 | . 1 . . Transport Status 1 | . 1 . . Recall Investigation 1 | . 1 . . Hauler Manifests 1 | . 1 . . Zone Layout 2 | . 2 . . Fabricator Hacks . | . . . . Repair Station Hacks 2 | . 2 . . Scan Component 1 | . 1 . . Repair 1 | . 1 . . Recycling Unit Hacks 2 | . 2 . . Retrieve Components 2 | . 2 . . Scanalyzer . | . . . . Garrison Access Hacks . | . . . . Unauthorized Hacks . | . . . . Terminals . | . . . . Fabricators . | . . . . Repair Stations . | . . . . Recycling Units . | . . . . Scanalyzers . | . . . . Garrison Access . | . . . . Data Cores Recovered . | . . . . Used . | . . . . Hacking Detections 7 | . 6 1 . Full Trace Events 1 | . 1 . . Feedback Events . | . . . . Feedback Blocked . | . . . . Robot Schematics Acquired . | . . . . Robots Built . | . . . . Authchips . | . . . . Time . | . . . . Total Robot Build Rating . | . . . . Part Schematics Acquired . | . . . . Parts Built . | . . . . Authchips . | . . . . Time . | . . . . Total Part Build Rating . | . . . . Part Studies Acquired . | . . . . Parts Repaired 1 | . 1 . . Time 26 | . 26 . . Parts Recycled . | . . . . Recycled Matter . | . . . . Retrieved Matter . | . . . . Retrieved Components 11 | . 11 . . Parts Scanalyzed . | . . . . Part Schematics Acquired . | . . . . Parts Damaged . | . . . . Bothacking | -11 -10 -10 -10 ------------ Run | Yrd Mat Min Sub Used RIF Installer . | . . . . Robots Hacked . | . . . . Non-combat . | . . . . Combat . | . . . . Robot Hacks Applied . | . . . . Relay Couplers Released . | . . . . Fabnet Peak Effective % . | . . . . Robots Rewired . | . . . . Allies Hacked . | . . . . Hacks Repelled . | . . . . Allies | -11 -10 -10 -10 -------- Run | Yrd Mat Min Sub Total Allies . | . . . . Largest Group . | . . . . Highest-Rated Group . | . . . . Highest-Rated Ally . | . . . . Total Orders . | . . . . Ally Attacks . | . . . . Total Damage . | . . . . Kills . | . . . . Allies Corrupted . | . . . . Allies Melted 1 | . . . 1 Intel | -11 -10 -10 -10 ------- Run | Yrd Mat Min Sub Active Infowar (turns) 3600 | 524 1096 1264 716 Sensors 1980 | . . 1264 716 Terrain 1620 | 524 1096 . . Robot Analysis Total . | . . . . Derelict Logs Recovered 4 | . . 1 3 Drone Launches . | . . . . Drone Recoveries . | . . . . Exploration | -11 -10 -10 -10 ------------- Run | Yrd Mat Min Sub Turns Passed 4777 | 625 2091 1345 716 Spaces Moved 2032 | 137 832 653 410 Core 42 | 41 . 1 . Treads . | . . . . Legs . | . . . . Wheels 1990 | 96 832 652 410 Hover . | . . . . Flight . | . . . . Fastest Speed 50 | 50 80 95 100 Average Speed 92 | 81 82 100 104 Slowest Speed 250 | 150 90 250 105 Overloaded Moves . | . . . . Propulsion Burnouts . | . . . . Robots Hopped . | . . . . Potential Cave-ins . | . . . . Cave-ins Triggered . | . . . . Exploration Rate (%) 56 | 4 97 99 24 Regions Visited 3 Branch Regions 2 Pre-discovered Areas 3 | . . . 3 Known Exits Taken 2 | . 1 1 . Unknown Exits Taken 1 | 1 . . . Scrap Searched 2 | . . 1 1 Spaces Dug 18 | . 18 . . Terrain Destroyed 20 | . 19 1 . Melee . | . . . . Projectile 20 | . 19 1 . AOE . | . . . . Terrain Rammed . | . . . . Walls Destroyed . | . . . . Machines Disabled . | . . . . Actions | -11 -10 -10 -10 --------- Run | Yrd Mat Min Sub Total 4595 | 621 2049 1302 623 Wait 2315 | 445 1083 618 169 Move 2029 | 136 831 652 410 Hop . | . . . . Pick Up 35 | 16 17 2 . Fast Attach 7 | 1 4 . 2 Attach 15 | 6 4 5 . Detach 1 | . . 1 . Swap 20 | 1 16 2 1 Drop 23 | 2 16 3 2 Fire 150 | 14 78 19 39 Melee . | . . . . Ram . | . . . . Kick . | . . . . Crush . | . . . . Escape Stasis . | . . . . Rewire . | . . . . Trap . | . . . . Miscellaneous . | . . . . Route ------- -11/Scrapyard -10/Materials (discovered 5 exits: *Mat x3 / *Min / *Sub) -10/Mines (discovered 3 exits: *Mat x2 / *Sub) -10/Subcaves (discovered 3 exits: *Mat / [*Rec] / [Scr]) History --------- Turn | Location | Event 7 | -11/Scrapyard | Discovered new exit (range 16) 626 | -11/Scrapyard | Entered Materials 627 | -10/Materials | Build established: Mutant 1634 | -10/Materials | Build established: Scavenger-Mutant 1645 | -10/Materials | Discovered new exit (range 9) 1715 | -10/Materials | Discovered new exit (range 6) 1911 | -10/Materials | Repaired EM Pulse Gun 1937 | -10/Materials | Discovered new exit (range 15) 1975 | -10/Materials | Build established: Mutant 2048 | -10/Materials | Discovered new exit (range 8) 2061 | -10/Materials | Identified exit to Subcaves 2231 | -10/Materials | Identified exit to Materials 2402 | -10/Materials | Discovered exit to Materials (range 3) 2716 | -10/Materials | Identified exit to Mines 2717 | -10/Materials | Entered Mines 2719 | -10/Mines | Core integrity fell below 50% 2746 | -10/Mines | Met a Derelict bent on vengeance 2772 | -10/Mines | Lost 4 parts (1p2n1w) 2778 | -10/Mines | Discovered exit to Subcaves (range 13) 2904 | -10/Mines | Learned Materials terminal intel 3100 | -10/Mines | Discovered exit to Materials (range 8) 3249 | -10/Mines | Discovered exit to Materials (range 9) 4062 | -10/Mines | Entered Subcaves 4063 | -10/Subcaves | Approached by a straggling Scientist 4064 | -10/Subcaves | Learned location of Zion (-7) 4079 | -10/Subcaves | Learned location of Storage (-7) 4082 | -10/Subcaves | Learned location of 2 exits from Materials 4184 | -10/Subcaves | Shifting Twisted Machinery released Battle Cannon 4199 | -10/Subcaves | Met a Zionite searching for "candidates" 4280 | -10/Subcaves | Shifting Twisted Machinery released Battle Rifle 4281 | -10/Subcaves | Discovered new exit (range 12) 4295 | -10/Subcaves | Identified exit to Materials 4434 | -10/Subcaves | Discovered new exit (range 14) 4438 | -10/Subcaves | Core integrity fell below 20% 4778 | -10/Subcaves | Destroyed by Autobeam Turret with Autobeam Last Messages --------------- 04445_ Acquired 5 matter. 04447_ Acquired 3 matter. 04450_ Subatomizers dissect the Sub. Monowheel. 04501_ System corrupted: FCS attempts to trigger Battle Cannon. 04501_ System corrupted: Battle Cannon misfires. 04514_ Acquired 2 matter. 04519_ Acquired 14 matter. 04543_ MA-GV1(R) knocked back. 04549_ MA-GV1(R) destroyed. 04553_ Acquired 38 matter. 04557_ Acquired 3 matter. 04562_ KMI/#HS|VW,IIZ=NA 04770_ Autobeam Turret knocked back. 04773_ Autobeam Turret destroyed. 04777_ Subatomizers dissect the Sub. Optics. Map ----- +----------------------------------------------------+ | ?????????????????????????????????????????????????? | | ?????????????????????????????????????????????????? | | ?????????????????????????????????????????????????? | | ?????????????????????????????????????????????????? | | ?????????????????????????????????????????????????? | | ???????????????????????????###???????????????????? | | ??????????????????????????## "#??????????????????? | | ??????????????????????????# ""##????????????????? | | ???????????????????????????# "" ##?#####??##?????? | | ????????????????????????????#""< ### ### ##????? | | ?????????????????? ???????#"" """"#????? | | ?????????????????? ???????# ## " ""#????? | | ?????????????????? #?" ??????# #""" ##???# | | ?????????????????# ## ???????# " ##??# | | ????????????????## "" ????????## [ """ #??# | | ???????????????## " ?????????## ### """###### | | ???????????????? %##????##### | !#?## " ###"""" | | ????????????????# !!#???# ## % ### "### | | ???????????????## [%=#### #### ## ## | | ???????????????# ???## ### ## | | ???????????#####< #?????####?# ## " # | | ???????????# #< #?????? """#?# " ### | | ???????????# #?????? % "#?# """ | | ???????????# % ###### "#?# """ | | ???????????# #" # % "### ## | | ???????????## ## # @ % <## #### | | ???????????? ??# # " t""#?## #?# | | ???????????" ??## ##### "#??## #?# | | ??????????""????# ####????? %"????## ##? | | ??????????&"???## # "###???????????### ## | | ?????????""????# """######????????# # | | ?????????##????### " ""##" ####?????# | | ?????????????????# ## ### #### ##????# | | ?????????????????########## "#?# """##???# # | | ??????????????????????????##" ### """ ##### ## | | ???????????????????????????#"# ## """ # ## | | ???????????????????????????#"" " | | ???????????????????????????##"####### ## ### # # | | ????????????????????????????##??????#######?## ### | | ??????????????????????????????????????????????##?? | | ?????????????????????????????????????????????????? | | ?????????????????????????????????????????????????? | | ?????????????????????????????????????????????????? | | ?????????????????????????????????????????????????? | | ?????????????????????????????????????????????????? | | ?????????????????????????????????????????????????? | | ?????????????????????????????????????????????????? | | ?????????????????????????????????????????????????? | | ?????????????????????????????????????????????????? | | ?????????????????????????????????????????????????? | +----------------------------------------------------+ Best States ------------- Heat Dissipation 25 Energy Generation 14 Energy Capacity 250 Matter Stores 300 Matter Capacity 300 Sight Range 16 Robot Scan Range 14 Terrain Scan Range 16 Terrain Scan Density 10 Power Shielding 33 Evasion (%) 50 Item Schematics ----------------- None Robot Schematics ------------------ None Fabricated ------------ Nothing Repaired ---------- EM Pulse Gun | 73% | -10/Materials Studied --------- None Alien Tech Used ----------------- None Achievements -------------- None Challenges ------------ None Game ------ Seed MetafieldMiniField Manual? 0 Play Time 00:54:52 Cumulative 19.2 hours Start 2026.04.10 @ 00:24:02 End 2026.04.10 @ 19:23:18 Sessions 3 Manual Loads 0 Difficulty Rogue Special Mode None Game No. 28 Rogue 25 Adventurer 3 Explorer 0 Win Type - Total 0 Types 0/0/0/0/0/0/0/0/0/0 Lore% 13 Gallery% 17 Achievement% 17 Wizard Run 0 Options --------- Layout 1 ASCII 0 Keyboard 0 Movement Mouse Keybinds 0 Fullscreen 1 Font 32/SmallcapsGlow Map View 50x35 Zoom Use 4% Tactical HUD 1 Map Filters NONE Filters NONE Steam 1 RUN: 3b094c7a-eff8-4427-bdd2-a6ca5288d77c